bitfinex-derivatives/quotes_ETHF0:USTF0_20250918
["timestamp","ask_amount","ask_price","bid_price","bid_amount"]
[1758199915189,0.221,4574.2,4574.1,0.7152]
[1758199915586,0.78203594,4574.2,4574.1,0.7152]
[1758199916279,0.221,4574.2,4574.1,0.7152]
[1758199918282,3.2078,4574.6,4574.1,0.7152]
[1758199918479,3.4182,4574.6,4574.5,0.8465]
[1758199918788,3.98997507,4574.6,4574.5,0.8465]
[1758199918985,0.78217507,4574.6,4574.5,0.8465]
[1758199919186,0.99257507,4574.6,4574.5,0.8465]
[1758199919785,0.77157507,4574.6,4574.5,0.8465]
[1758199919986,0.99257507,4574.6,4574.5,0.8465]
[1758199920180,0.56117507,4574.6,4574.5,0.8465]
[1758199920380,0.221,4574.6,4574.5,0.8465]
[1758199920787,3.2078,4575.1,4574.5,0.8465]
[1758199920989,3.4182,4575.1,4575.0,0.8465]
[1758199921285,0.56144071,4575.1,4575.0,0.8465]
[1758199921482,0.221,4575.1,4575.0,0.8465]
[1758199921681,0.78252787,4575.1,4575.0,0.8465]
[1758199921885,0.78253007,4575.1,4575.0,0.8465]
[1758199922480,3.2078,4575.7,4575.0,0.8465]
[1758199922690,1.18735144,4575.6,4575.5,0.8465]
[1758199923282,1.18735144,4575.6,4575.0,0.1169]
[1758199923489,0.4047,4575.2,4575.1,0.3122]
[1758199923685,0.7707,4575.2,4575.1,0.5198]
[1758199923888,0.6257,4575.2,4575.1,0.5198]
[1758199924284,0.4314,4575.2,4575.1,0.7296]
[1758199926094,3.2078,4575.7,4575.0,0.1169]
[1758199926095,0.195,4575.6,4575.5,0.8431]
[1758199926390,0.97733769,4575.6,4575.5,0.8431]
[1758199928993,1.18433769,4575.6,4575.5,0.8431]
[1758199929889,0.221,4575.6,4575.5,0.8431]
[1758199930085,3.2078,4575.7,4575.6,0.3078]
[1758199930289,3.9897289,4575.7,4575.6,0.721]
[1758199930591,3.4288,4575.7,4575.6,0.721]
[1758199930983,3.2078,4575.7,4575.6,0.721]
[1758199931189,3.4288,4575.7,4575.6,0.721]
[1758199931893,3.2078,4575.7,4575.6,0.721]
[1758199932396,3.4288,4575.7,4575.6,0.721]
[1758199932693,3.2078,4575.7,4575.6,0.721]
[1758199932892,0.221,4575.9,4575.8,0.4132]
[1758199933090,0.221,4575.9,4575.8,0.721]
[1758199933597,0.416,4575.9,4575.8,0.721]
[1758199934698,0.195,4575.9,4575.8,0.721]
[1758199937497,0.195,4576.1,4576.0,0.8431]
[1758199937701,0.402,4576.1,4576.0,0.8431]
[1758199939097,0.5467,4576.1,4576.0,0.8431]
[1758199939398,0.402,4576.1,4576.0,0.8431]
[1758199941103,0.96258384,4576.1,4576.0,0.8431]
[1758199941502,0.195,4576.1,4576.0,0.8431]
[1758199944396,3.2078,4576.5,4576.0,0.8431]
[1758199944601,3.2078,4576.5,4576.3,0.721]
[1758199944799,3.2078,4576.5,4576.4,0.721]
[1758199944996,3.96366687,4576.5,4576.4,0.721]
[1758199945398,3.76866687,4576.5,4576.4,0.721]
[1758199945598,3.2078,4576.5,4576.4,0.721]
[1758199947305,3.2078,4577.0,4576.6,0.3078]
[1758199947513,3.2078,4577.0,4576.8,0.721]
[1758199947807,3.4028,4577.0,4576.9,0.721]
[1758199948207,3.96421135,4577.0,4576.9,0.721]
[1758199948408,3.76921135,4577.0,4576.9,0.721]
[1758199948607,3.2078,4577.0,4576.9,0.721]
[1758199950709,3.4028,4577.0,4576.9,0.721]
[1758199951610,3.6098,4577.0,4576.9,0.721]
[1758199952305,3.7545,4577.0,4576.9,0.721]
[1758199953111,3.6098,4577.0,4576.9,0.721]
[1758199953601,3.8298,4577.0,4576.9,0.721]
[1758199954212,3.4278,4577.0,4576.9,0.721]
[1758199955005,3.6228,4577.0,4576.9,0.721]
[1758199955915,3.8183,4577.0,4576.9,0.721]
[1758199958904,4.52330772,4577.0,4576.6,0.3031]
[1758199959108,0.3883,4576.7,4576.6,0.3031]
[1758199959314,0.5329,4576.7,4576.6,0.3031]
[1758199960117,0.3883,4576.7,4576.6,0.6941]
[1758199961611,0.5329,4576.7,4576.6,0.3031]
[1758199963412,0.1446,4576.6,4576.3,0.3031]
[1758199963618,0.5329,4576.4,4576.3,0.3031]
[1758199964114,0.3883,4576.4,4576.3,0.499]
[1758199964313,0.3883,4576.4,4576.3,0.6941]
[1758199966722,0.1928,4576.4,4576.3,0.6941]
[1758199968022,0.3883,4576.4,4576.3,0.6941]
[1758199968224,0.5329,4576.4,4576.3,0.6941]
[1758199968724,0.1928,4576.4,4576.3,0.6941]
[1758199969914,0.22,4576.6,4576.5,0.1203]
[1758199970120,0.4128,4576.6,4576.5,0.8144]
[1758199970317,0.97414108,4576.6,4576.5,0.8144]
[1758199970522,0.56134108,4576.6,4576.5,0.8144]
[1758199970722,3.4278,4577.0,4576.6,0.3031]
[1758199970919,0.56137637,4576.9,4576.8,0.6941]
[1758199974729,0.75417637,4576.9,4576.8,0.6941]
[1758199977029,0.56137637,4576.9,4576.8,0.6941]
[1758199977924,0.22,4577.3,4577.2,0.6975]
[1758199978127,0.78217736,4577.5,4577.2,0.6975]
[1758199978326,0.56217736,4577.4,4577.2,0.3974]
[1758199978626,0.22,4577.5,4577.2,0.3974]
[1758199978627,0.56217736,4577.3,4577.2,0.6975]
[1758199981228,0.56217736,4577.3,4577.0,0.1168]
[1758199981229,0.1986,4577.6,4577.5,0.1168]
[1758199981527,0.97265261,4577.6,4577.5,0.5142]
[1758199981730,0.97265261,4577.6,4577.5,0.8143]
[1758199981933,1.11825261,4577.6,4577.5,0.8143]
[1758199982226,1.11825261,4577.6,4577.5,0.6176]
[1758199983028,1.11825261,4577.6,4577.5,0.4169]
[1758199984534,1.11825261,4577.6,4577.5,0.6176]
[1758199985433,0.97265261,4577.6,4577.5,0.6176]
[1758199985634,4.32555261,4577.6,4577.5,0.6176]
[1758199989941,4.32555261,4577.6,4577.5,0.3001]
[1758199990336,4.32555261,4577.6,4577.5,0.6287]
[1758199991139,4.18045261,4577.6,4577.5,0.6287]
[1758199992337,4.18045261,4577.6,4577.5,0.8332]
[1758199994338,4.40045261,4577.6,4577.5,0.8332]
[1758199994540,3.96825261,4577.6,4577.5,0.8332]
[1758199995032,3.76965261,4577.6,4577.5,0.8332]
[1758199995234,3.76965172,4577.6,4577.5,0.8332]
[1758199995437,3.2078,4577.6,4577.5,0.8332]
[1758199996138,3.412,4577.6,4577.5,0.8332]
[1758199997345,3.97393489,4577.6,4577.5,0.8332]
[1758199997648,4.17323489,4577.6,4577.5,0.8332]
[1758199999946,4.31833489,4577.6,4577.5,0.8332]
[1758200000849,4.17323489,4577.6,4577.5,0.8332]
[1758200003554,0.96543489,4577.6,4577.5,0.8332]
[1758200004453,0.76613489,4577.6,4577.5,0.8332]
[1758200004649,0.96543489,4577.6,4577.5,0.8332]
[1758200005854,1.11053489,4577.6,4577.5,0.8332]
[1758200006049,0.96543489,4577.6,4577.5,0.8332]
[1758200006355,1.11053489,4577.6,4577.5,0.8332]
[1758200008541,0.96543489,4577.6,4577.5,0.8332]
[1758200009448,0.4035,4577.4,4577.3,0.0218]
[1758200009654,0.5486,4577.4,4577.3,0.3197]
[1758200009855,1.11053489,4577.4,4577.3,0.2979]
[1758200014450,1.11053489,4577.4,4577.1,0.0218]
[1758200014750,0.5486,4577.2,4577.1,0.0218]
[1758200014948,1.11053489,4577.2,4577.1,0.0218]
[1758200015350,1.11053489,4577.2,4577.1,0.3242]
[1758200015749,1.11053489,4577.2,4577.1,0.3024]
[1758200016456,1.33053489,4577.2,4577.1,0.3024]
[1758200019955,0.1452,4577.1,4576.9,0.0218]
[1758200020156,1.11583489,4577.0,4576.9,0.0218]
[1758200020559,1.11583489,4577.0,4576.9,0.3242]
[1758200020860,1.11583489,4577.0,4576.9,0.3024]
[1758200023267,1.33583489,4577.0,4576.9,0.3024]
[1758200023461,1.33583489,4577.0,4576.5,0.1203]
[1758200023657,0.1452,4576.5,4576.4,2.4883]
[1758200023963,0.7739,4576.5,4576.4,2.4883]
[1758200024262,0.7739,4576.5,4576.4,0.3024]
[1758200024461,0.6287,4576.5,4576.4,0.717]
[1758200027573,1.19891646,4576.5,4576.4,0.717]
[1758200027758,1.34411646,4576.5,4576.1,0.3024]
[1758200027958,0.4087,4576.1,4576.0,0.3347]
[1758200028157,0.4087,4576.1,4576.0,0.5367]
[1758200028562,0.2082,4576.1,4576.0,0.8391]
[1758200028759,0.22,4576.3,4576.1,0.3024]
[1758200028964,0.22,4576.3,4576.2,0.717]
[1758200029162,1.19866613,4576.3,4576.2,0.717]
[1758200030154,0.97866613,4576.3,4576.2,0.717]
[1758200030361,1.19866613,4576.3,4576.2,0.717]
[1758200031768,0.6287,4576.3,4576.2,0.717]
[1758200037371,0.4282,4576.3,4576.2,0.717]
[1758200038773,0.6387,4576.3,4576.2,0.717]
[1758200039069,0.4187,4576.3,4576.2,0.717]
[1758200039265,1.20845199,4576.3,4576.2,0.717]
[1758200041672,0.99795199,4576.3,4576.2,0.717]
[1758200042776,1.20845199,4576.3,4576.2,0.717]
[1758200043982,0.99795199,4576.3,4576.2,0.717]
[1758200044967,0.77795199,4576.3,4576.2,0.717]
[1758200045270,0.78975199,4576.3,4576.2,0.717]
[1758200046272,0.98965199,4576.3,4576.2,0.717]
[1758200047672,0.78975199,4576.3,4576.2,0.717]
[1758200048072,0.98805199,4576.3,4576.2,0.717]
[1758200048273,1.19685199,4576.3,4576.2,0.717]
[1758200048670,1.34205199,4576.3,4576.2,0.717]
[1758200048871,1.34205199,4576.3,4576.2,0.515]
[1758200049072,1.34205199,4576.3,4576.2,0.3024]
[1758200052079,1.19685199,4576.3,4576.2,0.5039]
[1758200052280,1.34205199,4576.3,4576.2,0.3024]
[1758200054383,1.34205199,4576.3,4576.2,0.5039]
[1758200054778,1.19685199,4576.3,4576.2,0.5039]
[1758200054981,0.78975199,4576.3,4576.2,0.7008]
[1758200058383,0.56975199,4576.3,4576.2,0.7008]
[1758200060992,0.97685199,4576.3,4576.2,0.7008]
[1758200064587,0.56975199,4576.3,4576.2,0.7008]
[1758200066689,3.4278,4577.0,4576.9,0.7025]
[1758200066891,3.8349,4577.0,4576.9,0.7025]
[1758200067086,3.9801,4577.0,4576.9,0.7025]
[1758200067991,3.7601,4577.0,4576.9,0.7025]
[1758200068291,3.9801,4577.0,4576.9,0.7025]
[1758200068988,3.9801,4577.0,4576.9,0.3041]
[1758200069397,3.8349,4577.0,4576.5,0.121]
[1758200069587,0.5523,4576.7,4576.6,0.3041]
[1758200075197,0.1983,4576.7,4576.6,0.7025]
[1758200075891,3.2078,4577.0,4576.7,0.3186]
[1758200076091,0.2102,4576.8,4576.7,0.3186]
[1758200076385,0.2102,4576.8,4576.7,0.7291]
[1758200078602,0.412,4576.8,4576.7,0.7291]
[1758200078803,1.20020201,4576.8,4576.7,0.7291]
[1758200080888,1.34510201,4576.8,4576.7,0.5219]
[1758200084295,1.34510201,4576.8,4576.5,0.121]
[1758200084503,1.12510201,4576.7,4576.6,0.3186]
[1758200085104,0.98020201,4576.7,4576.6,0.5219]
[1758200085703,1.12510201,4576.7,4576.6,0.3186]
[1758200086601,1.12510201,4576.7,4576.6,0.5219]
[1758200086903,0.98020201,4576.7,4576.6,0.7291]
[1758200087305,0.78820201,4576.7,4576.6,0.7291]
[1758200088401,0.56820201,4576.7,4576.6,0.7291]
[1758200088601,0.56820201,4576.7,4576.6,0.4105]
[1758200088804,0.56820201,4576.7,4576.6,0.7291]
[1758200091291,0.22,4576.9,4576.8,0.4105]
[1758200091502,0.99867548,4576.9,4576.8,0.7291]
[1758200091703,1.20047548,4576.9,4576.8,0.7291]
[1758200092193,1.34537548,4576.9,4576.8,0.7291]
[1758200093002,1.20047548,4576.9,4576.8,0.7291]
[1758200100312,0.99867548,4576.9,4576.8,0.7291]
[1758200101009,1.19437548,4576.9,4576.8,0.7291]
[1758200101606,0.56847548,4576.9,4576.8,0.7291]
[1758200102013,0.78847548,4576.9,4576.8,0.7291]
[1758200102709,1.18487548,4576.9,4576.6,0.3371]
[1758200102916,0.5416,4576.7,4576.6,0.0218]
[1758200103107,1.55952537,4576.7,4576.6,0.0218]
[1758200103307,1.55952537,4576.7,4576.1,0.3153]
[1758200103308,0.1452,4576.6,4576.1,0.3153]
[1758200103607,0.3964,4576.2,4576.1,0.7064]
[1758200103810,1.18487548,4576.2,4576.1,0.7064]
[1758200105018,1.33007548,4576.2,4576.1,0.3153]
[1758200105507,1.33007548,4576.2,4576.1,0.5142]
[1758200108512,1.18487548,4576.2,4576.1,0.5142]
[1758200108703,0.78847548,4576.2,4576.1,0.7136]
[1758200109913,3.2078,4576.5,4576.2,0.2981]
[1758200110109,3.2078,4577.0,4576.9,0.7035]
[1758200110317,3.99630091,4577.0,4576.9,0.7035]
[1758200113524,4.20900091,4577.0,4576.9,0.7035]
[1758200114925,3.98900091,4577.0,4576.9,0.7035]
[1758200115222,3.77630091,4577.0,4576.9,0.7035]
[1758200115426,3.99630091,4577.0,4576.9,0.7035]
[1758200116623,0.22,4577.5,4576.9,3.9113]
[1758200116828,0.4327,4577.5,4577.4,0.4054]
[1758200117132,1.00102013,4577.5,4577.4,0.7035]
[1758200118826,1.34142013,4577.5,4577.4,0.5041]
[1758200119025,1.34142013,4577.5,4577.4,0.2981]
[1758200120118,1.34142013,4577.5,4577.4,0.5041]
[1758200120320,1.19592013,4577.5,4577.4,0.5041]
[1758200120829,1.34142013,4577.5,4577.4,0.2981]
[1758200121023,0.5531,4577.2,4577.1,0.2981]
[1758200122120,0.4076,4577.2,4576.9,2.484]
[1758200122326,3.7609,4577.0,4576.9,2.1859]
[1758200122522,3.7609,4577.0,4576.9,2.484]
[1758200123228,3.7609,4577.0,4576.9,0.2981]
[1758200124331,3.7609,4577.0,4576.9,0.5041]
[1758200124533,4.32891189,4577.0,4576.9,0.5041]
[1758200125232,0.4076,4576.7,4576.6,0.2981]
[1758200125533,0.5531,4576.7,4576.6,0.5041]
[1758200125831,0.7731,4576.7,4576.0,2.308]
[1758200126028,0.4076,4576.2,4576.1,0.7035]
[1758200126521,3.4205,4577.0,4576.9,0.206]
[1758200126727,4.4034194,4577.0,4576.9,0.5041]
[1758200126923,4.1834194,4577.0,4576.9,0.5041]
[1758200127127,4.4034194,4577.0,4576.9,0.5041]
[1758200127535,4.40341891,4577.0,4576.9,0.5041]
[1758200127729,4.40341891,4577.0,4576.9,0.7035]
[1758200127929,4.18341891,4577.0,4576.9,0.7035]
[1758200128130,4.40341891,4577.0,4576.9,0.7035]
[1758200128834,1.19561891,4577.0,4576.9,0.7035]
[1758200129935,0.97561891,4577.0,4576.9,0.7035]
[1758200130137,1.00071891,4577.0,4576.9,0.7035]
[1758200131435,0.78071891,4577.0,4576.9,0.7035]
[1758200131633,0.97561891,4577.0,4576.9,0.7035]
[1758200132838,0.56801891,4577.0,4576.9,0.7035]
[1758200133231,0.22,4577.2,4577.1,0.4054]
[1758200133426,1.00079679,4577.2,4577.1,0.7035]
[1758200134437,0.78079679,4577.2,4577.1,0.7035]
[1758200139343,0.56809679,4577.2,4577.1,0.7035]
[1758200143147,0.6239,4577.6,4577.5,0.3256]
[1758200143445,1.19268486,4577.6,4577.5,0.6457]
[1758200143638,1.19268486,4577.6,4577.5,0.8519]
[1758200146544,1.1925272,4577.6,4577.5,0.8519]
[1758200147237,1.1925272,4577.6,4577.0,0.128]
[1758200147238,1.3378272,4577.6,4577.0,0.128]
[1758200147543,0.4039,4577.2,4577.1,0.5289]
[1758200148044,0.4039,4577.2,4577.1,0.7351]
[1758200148439,0.4039,4577.2,4577.1,0.5289]
[1758200148647,0.5492,4577.2,4577.1,0.3201]
[1758200148846,0.5492,4577.2,4577.1,0.5289]
[1758200149247,0.4039,4577.2,4577.1,0.5289]
[1758200149646,0.4039,4577.2,4577.1,0.7351]
[1758200149647,0.1922,4577.2,4577.1,0.7351]
[1758200150146,3.4,4577.4,4577.3,0.415]
[1758200150348,3.96858661,4577.4,4577.3,0.7351]
[1758200150646,4.18028661,4577.4,4577.3,0.7351]
[1758200154048,4.32558661,4577.4,4577.3,0.3201]
[1758200155144,4.32558661,4577.4,4577.3,0.5289]
[1758200155345,4.18028661,4577.4,4577.3,0.5289]
[1758200156451,4.18028661,4577.4,4577.3,0.7351]
[1758200157344,3.96858661,4577.4,4577.3,0.7351]
[1758200157556,3.77638661,4577.4,4577.3,0.7351]
[1758200159353,0.96158661,4577.4,4577.3,0.7351]
[1758200160553,0.4139,4577.6,4577.5,0.5308]
[1758200160848,1.18166305,4577.6,4577.5,0.8325]
[1758200163650,0.96166305,4577.6,4577.5,0.8325]
[1758200166646,1.10686305,4577.6,4577.5,0.6298]
[1758200168257,0.96166305,4577.6,4577.5,0.6298]
[1758200168862,0.96166305,4577.6,4577.5,0.823]
[1758200169163,0.76256305,4577.6,4577.5,0.823]
[1758200169657,0.56866305,4577.6,4577.5,0.823]
[1758200170653,0.78866305,4577.8,4577.5,0.823]
[1758200170850,0.56866305,4577.7,4577.6,0.7122]
[1758200172455,0.4082,4577.7,4577.6,0.4055]
[1758200172655,0.97686305,4577.7,4577.6,0.4055]
[1758200172961,0.97686305,4577.7,4577.6,0.7122]
[1758200180368,1.12206305,4577.7,4577.6,0.3067]
[1758200183573,1.12206305,4577.7,4577.6,0.519]
[1758200184276,0.97686305,4577.7,4577.6,0.7122]
[1758200185474,1.12206305,4577.7,4577.6,0.3067]
[1758200186171,1.34051305,4577.7,4577.4,0.0218]
[1758200186363,0.6262,4577.5,4577.4,0.0218]
[1758200186567,1.34837478,4577.5,4577.4,0.0218]
[1758200186768,1.20317478,4577.5,4576.9,2.1859]
[1758200186970,3.7612,4577.1,4577.0,0.6414]
[1758200187275,4.54986305,4577.1,4577.0,0.6414]
[1758200189873,4.40466305,4577.1,4577.0,0.6414]
[1758200190777,4.54986305,4577.1,4577.0,0.6414]
[1758200193072,4.54986305,4577.1,4577.0,0.3067]
[1758200193267,0.5534,4576.9,4576.8,0.0218]
[1758200193475,0.4456,4576.5,4576.4,2.1859]
[1758200193782,4.56546305,4576.5,4576.4,2.1859]
[1758200194778,4.51486305,4576.5,4576.4,0.3067]
[1758200197480,4.39146305,4576.5,4576.4,0.519]
[1758200198376,4.51506305,4576.5,4576.4,0.519]
[1758200198577,4.51506305,4576.5,4576.4,0.3067]
[1758200200183,4.39146305,4576.5,4576.4,0.7214]
[1758200201779,4.51506305,4576.5,4576.4,0.7214]
[1758200201979,4.51506305,4576.5,4576.4,0.5146]
[1758200204485,4.29506305,4576.5,4576.4,0.3067]
[1758200204680,4.51506305,4576.5,4576.4,0.3067]
[1758200206085,0.1982,4576.2,4576.1,0.3133]
[1758200206289,0.7346,4576.2,4576.1,0.3133]
[1758200209885,0.611,4576.2,4576.1,0.5212]
[1758200211495,0.7346,4576.2,4576.1,0.5212]
[1758200212795,0.611,4576.2,4576.1,0.5212]
[1758200212992,1.18541549,4576.2,4576.1,0.5212]
[1758200213393,1.30901549,4576.2,4576.1,0.5212]
[1758200215687,1.30901549,4576.2,4575.5,3.352]
[1758200215688,0.5146,4575.7,4575.5,0.0218]
[1758200215893,4.74272495,4575.7,4575.2,2.1859]
[1758200216193,0.5146,4575.3,4575.2,2.4992]
[1758200216395,0.7346,4575.3,4575.2,2.4992]
[1758200216699,1.30901549,4575.3,4575.2,0.3133]
[1758200222105,1.30901549,4575.3,4575.2,0.5245]
[1758200222106,1.18541549,4575.3,4575.2,0.5245]
[1758200222295,1.18541549,4575.3,4575.2,0.7319]
[1758200224402,1.30901549,4575.3,4575.2,0.7319]
[1758200224900,1.18541549,4575.3,4575.2,0.7319]
[1758200225796,1.30891549,4575.3,4575.2,0.7319]
[1758200225991,1.18541549,4575.3,4575.2,0.7319]
[1758200226802,1.30891549,4575.3,4575.2,0.7319]
[1758200228003,1.18541549,4575.3,4575.2,0.7319]
[1758200229205,1.30891549,4575.3,4575.2,0.7319]
[1758200229502,1.18541549,4575.3,4575.2,0.7319]
[1758200231500,1.30891549,4575.3,4575.2,0.5245]
[1758200231702,1.30891549,4575.3,4575.2,0.3133]
[1758200232999,5.4039855,4575.3,4574.8,0.3191]
[1758200233206,0.5164,4574.6,4574.5,0.3191]
[1758200233509,1.32079609,4574.6,4574.5,0.3191]
[1758200234106,1.32079609,4574.6,4574.5,0.4402]
[1758200236104,1.32079609,4574.6,4574.3,2.505]
[1758200236105,1.19729609,4574.6,4574.3,2.505]
[1758200236308,0.5164,4574.4,4574.3,2.1859]
[1758200236606,1.10079609,4574.4,4574.3,2.1859]
[1758200237004,1.10079609,4574.4,4574.3,2.505]
[1758200237709,4.30859609,4574.4,4574.3,2.505]
[1758200240510,4.30859609,4574.4,4574.3,0.3191]
[1758200241012,4.30859609,4574.4,4574.3,0.5145]
[1758200242318,4.40509609,4574.4,4574.3,0.5145]
[1758200243018,4.52859609,4574.4,4574.3,0.5145]
[1758200245012,4.52859609,4574.4,4574.3,0.3191]
[1758200245414,4.52859609,4574.4,4574.1,0.3191]
[1758200245415,0.3929,4574.2,4574.1,0.3191]
[1758200245616,0.7364,4574.2,4574.1,0.3191]
[1758200245817,1.32079609,4574.2,4574.1,0.3191]
[1758200250020,1.19729609,4574.2,4574.1,0.5145]
[1758200250227,1.19729609,4574.2,4574.1,0.7268]
[1758200250927,0.97729609,4574.2,4574.1,0.7268]
[1758200251226,1.19729609,4574.2,4574.1,0.7268]
[1758200254531,0.77969609,4574.2,4574.1,0.7268]
[1758200254829,0.80439609,4574.2,4574.1,0.7268]
[1758200255138,0.99969609,4574.2,4574.1,0.7268]
[1758200255927,1.19729609,4574.2,4574.1,0.7268]
[1758200262330,1.42424025,4574.2,4574.1,0.7268]
[1758200262732,0.58439609,4574.2,4574.1,0.7268]
[1758200262939,0.58439609,4574.3,4574.1,0.4077]
[1758200263230,0.80439609,4574.3,4574.1,0.4077]
[1758200263436,0.58439609,4574.2,4574.1,0.4077]
[1758200264028,0.58439609,4574.2,4574.1,0.7165]
[1758200267233,3.2078,4574.4,4574.3,0.4063]
[1758200267429,4.01261486,4574.4,4574.3,0.7151]
[1758200267635,3.79261486,4574.4,4574.3,0.7151]
[1758200267937,4.01261486,4574.4,4574.3,0.7151]
[1758200268639,0.80476707,4574.4,4574.3,0.7151]
[1758200270735,0.58476707,4574.4,4574.3,0.7151]
[1758200271739,0.22,4574.6,4574.5,0.5234]
[1758200271937,0.22,4574.6,4574.5,0.8322]
[1758200272139,0.58456432,4574.6,4574.5,0.8322]
[1758200272337,0.80456432,4574.6,4574.5,0.8322]
[1758200272538,0.58456432,4574.6,4574.5,0.8322]
[1758200275535,0.78156432,4574.6,4574.5,0.8322]
[1758200278847,0.58456432,4574.6,4574.5,0.8322]
[1758200281550,0.1973,4575.1,4575.0,0.8169]
[1758200281747,0.58287702,4575.1,4575.0,0.5193]
[1758200281946,3.2078,4575.4,4575.3,0.6982]
[1758200282249,4.40400486,4575.4,4575.3,0.6982]
[1758200283151,4.52730486,4575.4,4575.3,0.2976]
[1758200283346,4.30730486,4575.4,4575.3,0.2976]
[1758200283546,4.40400486,4575.4,4575.1,0.2976]
[1758200283851,0.5166,4575.1,4575.0,0.3215]
[1758200284146,0.3933,4575.1,4575.0,0.5193]
[1758200284353,0.97620486,4575.1,4575.0,0.8169]
[1758200284948,0.58290486,4575.1,4575.0,0.8169]
[1758200285158,0.78020486,4575.1,4575.0,0.8169]
[1758200285752,0.1973,4575.1,4575.0,0.8169]
[1758200285952,3.2078,4575.4,4575.0,0.5193]
[1758200286152,0.58272366,4575.3,4575.2,0.6846]
[1758200286863,3.2078,4575.4,4575.3,0.6846]
[1758200287165,3.4045,4575.4,4575.3,0.6846]
[1758200287355,3.98723104,4575.4,4575.3,0.6846]
[1758200288165,3.4045,4575.4,4575.3,0.6846]
[1758200288363,3.98711474,4575.4,4575.3,0.6846]
[1758200288559,3.79041474,4575.4,4575.3,0.6846]
[1758200288859,3.2078,4575.4,4575.3,0.6846]
[1758200289064,0.1967,4575.6,4575.5,0.1171]
[1758200289263,0.1967,4575.6,4575.5,0.5098]
[1758200289466,0.77921266,4575.6,4575.5,0.5098]
[1758200289661,0.99921266,4575.6,4575.5,0.8017]
[1758200290567,1.19741266,4575.6,4575.5,0.8017]
[1758200291970,0.99921266,4575.6,4575.5,0.8017]
[1758200292858,0.77921266,4575.6,4575.5,0.8017]
[1758200293061,0.99921266,4575.6,4575.5,0.8017]
[1758200293470,0.77921266,4575.6,4575.5,0.8017]
[1758200293770,0.97741266,4575.6,4575.5,0.8017]
[1758200295166,1.19741266,4575.6,4575.5,0.8017]
[1758200309779,0.97741266,4575.6,4575.5,0.8017]
[1758200310183,1.10121266,4575.6,4575.3,0.0218]
[1758200310479,0.4286,4574.7,4574.6,0.2919]
[1758200310884,0.4286,4574.6,4574.5,2.4778]
[1758200311184,1.01130961,4574.6,4574.5,2.4778]
[1758200311482,1.01130961,4574.6,4574.5,2.5949]
[1758200311682,0.90930961,4574.6,4574.5,0.603]
[1758200312783,0.90930961,4574.6,4574.5,0.8017]
[1758200313087,0.96600961,4574.6,4574.5,0.8017]
[1758200313683,0.74600961,4574.6,4574.5,0.8017]
[1758200314584,0.58270961,4574.6,4574.5,0.8017]
[1758200315287,0.22,4574.7,4574.6,0.6846]
[1758200315487,3.2078,4575.0,4574.6,0.3927]
[1758200315488,0.58984081,4574.9,4574.6,0.3927]
[1758200315688,0.80984081,4574.8,4574.7,0.3146]
[1758200315988,0.58984081,4574.8,4574.7,0.727]
[1758200316680,3.2078,4575.5,4574.7,0.727]
[1758200316986,0.80979736,4575.4,4575.3,0.727]
[1758200317191,0.58979736,4575.4,4575.3,0.727]
[1758200317382,0.80979736,4575.4,4575.3,0.727]
[1758200317889,0.58979736,4575.4,4575.3,0.727]
[1758200321881,3.2078,4576.0,4575.5,0.1154]
[1758200321882,0.3828,4575.9,4575.5,0.1154]
[1758200322085,0.75236489,4575.8,4575.7,0.727]
[1758200323095,0.91516489,4575.8,4575.7,0.727]
[1758200324189,1.01696489,4575.8,4575.7,0.3146]
[1758200324387,1.01696489,4575.8,4575.5,0.1154]
[1758200324388,0.1018,4575.7,4575.5,0.3146]
[1758200324591,1.01696489,4575.6,4575.1,0.3146]
[1758200324793,0.4274,4575.2,4575.1,0.3146]
[1758200324987,1.01696489,4575.2,4575.1,0.3146]
[1758200325391,1.23696489,4575.2,4575.1,0.3146]
[1758200326692,0.1628,4574.8,4574.7,2.1859]
[1758200326997,1.01696489,4574.8,4574.7,2.5005]
[1758200327390,1.01696489,4574.8,4574.7,0.5246]
[1758200328189,0.75236489,4574.8,4574.7,0.727]
[1758200328392,0.22,4575.0,4574.8,0.3146]
[1758200328586,3.3706,4575.3,4575.2,0.21]
[1758200328794,3.95992153,4575.3,4575.2,0.727]
[1758200329593,0.75212153,4575.3,4575.2,0.727]
[1758200330992,0.58932153,4575.3,4575.2,0.727]
[1758200336697,3.4278,4575.8,4575.2,0.4124]
[1758200336897,3.5905,4575.8,4575.7,0.7329]
[1758200337202,4.12285528,4575.8,4575.7,0.7329]
[1758200339004,4.34285528,4575.8,4575.7,0.7329]
[1758200341302,4.44455528,4575.8,4575.7,0.3153]
[1758200342105,4.22455528,4575.8,4575.7,0.3153]
[1758200342302,4.44455528,4575.8,4575.7,0.3153]
[1758200345102,0.1627,4575.6,4575.5,0.1255]
[1758200345308,0.4271,4575.6,4575.5,0.4408]
[1758200345505,1.01675528,4575.6,4575.5,0.4408]
[1758200347908,1.23675528,4575.6,4575.5,0.4408]
[1758200348109,1.13505528,4575.6,4575.5,0.8557]
[1758200350302,0.80965528,4575.6,4575.5,0.8557]
[1758200351099,1.13405528,4575.6,4575.5,0.8557]
[1758200351402,1.13405528,4575.6,4575.5,0.6377]
[1758200351403,0.91405528,4575.6,4575.5,0.6377]
[1758200351605,1.13405528,4575.6,4575.5,0.8469]
[1758200352504,0.80965528,4575.6,4575.5,0.8469]
[1758200352810,0.97185528,4575.6,4575.5,0.8469]
[1758200354113,1.13405528,4575.6,4575.5,0.8469]
[1758200355712,0.80965528,4575.6,4575.5,0.8469]
[1758200356607,0.58965528,4575.6,4575.5,0.8469]
[1758200356815,0.58965528,4575.7,4575.5,0.8383]
[1758200357112,0.58965528,4575.7,4575.6,0.7128]